fUSD/lending_fUSD_20250820
["ID","MTS","AMOUNT","RATE_DAILY","PERIOD"]
[380322155,1755675038626,-408.27,0.00011,2]
[380322157,1755675038635,-15862.86,0.00011,2]
[380322159,1755675038644,-267289.17,0.00011,2]
[380322161,1755675038653,-500.0,0.00011,2]
[380322163,1755675038662,-150.0,0.00011,2]
[380322165,1755675038671,-532.0,0.00011,2]
[380322167,1755675038680,-500.0,0.00011,2]
[380322169,1755675038689,-150.79277605,0.00011,2]
[380322171,1755675038698,-150.51277424,0.00011,2]
[380322173,1755675038707,-200.684646,0.00011,2]
[380322175,1755675038715,-151.34190019,0.00011,2]
[380322177,1755675038725,-150.45397926,0.00011,2]
[380322179,1755675038734,-150.0,0.00011,2]
[380322181,1755675038743,-251359.76002957,0.00011,2]
[380322183,1755675038755,-355.87590338,0.00011,2]
[380322185,1755675038766,-169194.08189473,0.00011,2]
[380322188,1755675038782,-17864.72878342,0.00011,2]
[380322314,1755675040112,-3583.06796825,0.00011,2]
[380322316,1755675040124,-435.38038272,0.00011,2]
[380322324,1755675040191,-577.95,0.00011,2]
[380322366,1755675043163,-450.00492089,0.00011,2]
[380322367,1755675043176,-20727.5439142,0.00011,2]
[380322368,1755675043229,-332.908,0.00011,2]
[380322369,1755675043293,-57041.0862618,0.00011,2]
[380322378,1755675381726,-153.44,0.00010032,2]
[380322379,1755675383885,-50.68,0.00010032,2]
[380322380,1755675620650,-168.545179,9.914e-05,2]
[380322381,1755675623994,-136.144821,9.914e-05,2]
[380322383,1755675658243,170.0,9.914e-05,7]
[380322414,1755676015932,153.46,9.84e-05,2]
[380322509,1755676222573,1668.74,9.879e-05,2]
[380322510,1755676232299,-500.0,0.00010088,2]
[380322511,1755676232308,-4.24982891,0.00010095,2]
[380322513,1755676232417,-438.0,0.00010095,2]
[380322514,1755676232507,-303.22319998,0.00010095,2]
[380322515,1755676232519,-254.52697111,0.00010095,2]
[380322516,1755676232528,-179.61,0.00010244,2]
[380322517,1755676232538,-179.61,0.00010292,2]
[380322518,1755676232547,-179.61,0.00010341,2]
[380322519,1755676232557,-151.0,0.00010372,2]
[380322520,1755676232567,-179.61,0.00010389,2]
[380322521,1755676232577,-200.0,0.000105,3]
[380322522,1755676232587,-1200.0,0.00010593,2]
[380322524,1755676232596,-322.6107,0.00010594,2]
[380322526,1755676232605,-160.0,0.00010594,2]
[380322528,1755676232615,-277.35679052,0.00010594,2]
[380322530,1755676232624,-150.99,0.00010594,2]
[380322532,1755676232633,-334.0,0.00010599,2]
[380322534,1755676232643,-500.0,0.000106,3]
[380322536,1755676232652,-500.0,0.0001063,2]
[380322538,1755676232662,-346.58,0.00010686,2]
[380322540,1755676232671,-798.85,0.00010696,2]
[380322555,1755676232680,-800.0,0.000107,3]
[380322556,1755676233079,-183.31139766,0.0001078,2]
[380322557,1755676233090,-408.27,0.000108,2]
[380322558,1755676233100,-468.62,0.000108,2]
[380322559,1755676233110,-1000.0,0.000108,3]
[380322560,1755676233120,-150.0,0.00010899,2]
[380322561,1755676233130,-161.53,0.000109,2]
[380322562,1755676233139,-742.93793496,0.000109,2]
[380322563,1755676233149,-891.8395,0.000109,2]
[380322564,1755676233159,-275.7207,0.000109,2]
[380322565,1755676233169,-1000.0,0.000109,2]
[380322566,1755676233178,-1300.0,0.000109,3]
[380322567,1755676233188,-150.0,0.00010959,2]
[380322568,1755676233198,-822.3561861,0.00010992,2]
[380322569,1755676233208,-1549.2153005,0.00010992,2]
[380322570,1755676233218,-702.74,0.00010999,2]
[380322571,1755676233228,-179.93478562,0.00010999,2]
[380322572,1755676233238,-4347.41316787,0.00010999,2]
[380322573,1755676233248,-355.99695165,0.00010999,2]
[380322574,1755676233257,-60374.09394475,0.00011,2]
[380322593,1755676239750,-726.49282513,0.00010999,2]
[380322594,1755676239804,-311.56246991,0.00010999,2]
[380322595,1755676239814,-36082.57617005,0.00011,2]
[380322596,1755676239828,-8355.461751,0.00011,2]
[380322597,1755676239843,-26065.84647648,0.00011,2]
[380322598,1755676239868,-500.0,0.00011,2]
[380322599,1755676240420,-466.14125,0.00011,2]
[380322600,1755676240432,-10639.25000008,0.00011,2]
[380322601,1755676240444,-546693.24208846,0.00011,2]
[380322602,1755676240456,-193451.00810528,0.00011,2]
[380322609,1755676243276,-2615.69477287,0.00011,2]
[380322610,1755676243340,-3049.96529891,0.00011,2]
[380322758,1755676329568,1085.0,9.64e-05,2]
[380322759,1755676334268,1085.0,9.508e-05,2]
[380322760,1755676338868,1085.0,9.508e-05,2]
[380322761,1755676345643,1085.0,9.508e-05,2]
[380322762,1755676348858,1085.0,9.508e-05,2]
[380322763,1755676353469,1085.0,9.508e-05,2]
[380322764,1755676358124,1085.0,9.508e-05,2]
[380322765,1755676427918,-151.0,0.00010147,2]
[380322766,1755676429714,-151.0,0.00010147,2]
[380322767,1755676433167,-151.0,0.00010147,2]
[380322768,1755676533096,-291.677148,0.00010147,2]
[380322769,1755676535520,-151.420153,0.00010147,2]
[380322771,1755676631363,170.0,0.00010132,7]
[380322773,1755677230158,-151.0,0.00010006,2]
[380322774,1755677233955,-151.0,0.00010006,2]
[380322775,1755677235574,-151.0,0.00010006,2]
[380322776,1755677240578,-500.0,0.00010006,2]
[380322777,1755677242562,-47.0,0.00010006,2]
[380322778,1755677275998,-157.747362,0.00010016,2]
[380322779,1755677278594,-37.232638,0.00010016,2]
[380322784,1755677431615,-250.0,0.00010069,2]
[380322786,1755677431624,-470.54,0.00010104,2]
[380322788,1755677431634,-296.71,0.00010147,2]
[380322789,1755677431643,-3647.99,0.00010147,2]
[380322790,1755677431653,-188.902699,0.00010147,2]
[380322791,1755677431662,-305.46444922,0.00010324,2]
[380322792,1755677431673,-294.47555078,0.00010324,2]
[380322793,1755677431683,-277.35679052,0.00010449,2]
[380322794,1755677431693,-151.52,0.00010563,2]
[380322795,1755677431703,-1085.0,0.00010681,2]
[380322796,1755677431712,-300.0,0.00010888,2]
[380322797,1755677431722,-150.0,0.00010888,2]
[380322798,1755677431732,-1200.0,0.00010888,2]
[380322799,1755677431741,-1568.18,0.00010889,2]
[380322800,1755677431750,-3604.45,0.00010889,2]
[380322801,1755677431760,-150.99,0.00010889,2]
[380322802,1755677431769,-7270.74,0.00010889,2]
[380322803,1755677431779,-9383.83066692,0.0001089,2]
[380322804,1755677431789,-422.70685,0.0001089,2]
[380322805,1755677431799,-8263.8583,0.000109,2]
[380322806,1755677431809,-715.91011998,0.000109,2]
[380322807,1755677431818,-42.39308553,0.000109,2]
[380322808,1755677431830,-531.6387966,0.000109,2]
[380322809,1755677431841,-1011.48667855,0.000109,2]
[380322810,1755677431850,-166.94878609,0.000109,2]
[380322811,1755677431860,-926.95139049,0.0001092,2]
[380322812,1755677431902,-5176.67460951,0.0001092,2]
[380322813,1755677431912,-21500.0,0.0001092,2]
[380322814,1755677431922,-717.0,0.0001092,2]
[380322815,1755677431935,-4152.0,0.0001092,2]
[380322816,1755677431945,-500.0,0.00010973,2]
[380322817,1755677431954,-42.31943112,0.00010973,2]
[380322819,1755677431972,-457.68056888,0.00010973,2]
[380322821,1755677431981,-872.81432013,0.00010992,2]
[380322823,1755677431991,-715.6496443,0.00010992,2]
[380322825,1755677432001,-322.6107,0.00010993,2]
[380322827,1755677432010,-721.12765535,0.00010993,2]
[380322828,1755677432020,-159.47177447,0.00010993,2]
[380322829,1755677432031,-500.0,0.00010993,2]
[380322830,1755677432041,-151.0,0.00010993,2]
[380322831,1755677432050,-1051.2292422,0.00010996,2]
[380322832,1755677432059,-605.83216156,0.00010999,2]
[380322834,1755677432068,-694.3,0.00010999,2]
[380322836,1755677432077,-502.34504058,0.00010999,2]
[380322838,1755677432086,-500.0,0.00010999,2]
[380322840,1755677432095,-304.01879547,0.00010999,2]
[380322841,1755677432105,-500.0,0.00010999,2]
[380322842,1755677432114,-1604.0,0.00011,2]
[380322843,1755677432123,-3097.12306904,0.00011,2]
[380322844,1755677432133,-87343.43623108,0.00011,2]
[380322848,1755677437635,-760.461751,0.00011,2]
[380322849,1755677437678,-302.07710013,0.00011,2]
[380322850,1755677437789,-134207.51642,0.00011,2]
[380322851,1755677437800,-1766.3018024,0.00011,2]
[380322852,1755677437812,-460.36906848,0.00011,2]
[380322853,1755677437901,-3396.10384288,0.00011,2]
[380322927,1755677440499,-568.6,0.00011,2]
[380322928,1755677440512,-2335.29685159,0.00011,2]
[380322929,1755677440664,-228.94499673,0.00011,2]
[380322930,1755677440675,-1025.06710056,0.00011,2]
[380322931,1755677440687,-861.94391621,0.00011,2]
[380322932,1755677440726,-3024.74301495,0.00011,2]
[380322933,1755677440737,-315082.63501078,0.00011,2]
[380322934,1755677440749,-2213633.28439439,0.00011,2]
[380322935,1755677440759,-160.0,0.00011,2]
[380322936,1755677440769,-267289.17,0.00011,2]
[380322937,1755677440779,-15862.85,0.00011,2]
[380322938,1755677440788,-200.0,0.00011,2]
[380322939,1755677440798,-151.0,0.00011,2]
[380322940,1755677440807,-1219.0,0.00011,2]
[380322941,1755677440816,-152.17377453,0.00011,2]
[380322942,1755677440826,-200.684646,0.00011,2]
[380322943,1755677440836,-342.62,0.00011,2]
[380322944,1755677440845,-173.58,0.00011,2]
[380322945,1755677440855,-408.27,0.00011,2]
[380322946,1755677440864,-150.0,0.00011,2]
[380322947,1755677440874,-150.79277605,0.00011,2]
[380322948,1755677440883,-150.51277424,0.00011,2]
[380322949,1755677440893,-150.45397926,0.00011,2]
[380322950,1755677440902,-150.0,0.00011,2]
[380322951,1755677440912,-151.0,0.00011,2]
[380322952,1755677440921,-157.38375704,0.00011,2]
[380322953,1755677440934,-380.0,0.00011,2]
[380322954,1755677440943,-777.0,0.00011,2]
[380322955,1755677440952,-150.0,0.00011,2]
[380322956,1755677440962,-150.0,0.00011,2]
[380322957,1755677440974,-500.0,0.00011,2]
[380322958,1755677440986,-150.0,0.00011,2]
[380322959,1755677440997,-500.0,0.00011,2]
[380322960,1755677441009,-150.0,0.00011,2]
[380322961,1755677441020,-240.0,0.00011,2]
[380322962,1755677441030,-4748.64746479,0.00011,2]
[380322963,1755677441042,-251.35253521,0.00011,2]
[380322964,1755677441052,-500.0,0.00011,2]
[380322965,1755677441061,-150.0,0.00011,2]
[380322966,1755677441070,-500.0,0.00011,2]
[380322967,1755677441080,-704.03460473,0.00011033,2]
[380322968,1755677441089,-151.27,0.00011049,2]
[380322969,1755677441098,-500.0,0.00011073,2]
[380322970,1755677441107,-500.0,0.00011073,2]
[380322971,1755677441116,-500.0,0.00011073,2]
[380322972,1755677441126,-567.61000524,0.00011073,2]
[380322973,1755677441136,-500.0,0.00011073,2]
[380322974,1755677441145,-500.0,0.00011073,2]
[380322975,1755677441155,-500.0,0.00011073,2]
[380322976,1755677441164,-500.22625231,0.00011073,2]
[380322977,1755677441174,-500.0,0.00011073,2]
[380322978,1755677441185,-500.0,0.00011073,2]
[380322979,1755677441194,-500.0,0.00011073,2]
[380322980,1755677441204,-500.0,0.00011073,2]
[380322981,1755677441213,-500.0,0.00011073,2]
[380322982,1755677441223,-500.0,0.00011073,2]
[380322983,1755677441232,-500.0,0.00011073,2]
[380322984,1755677441242,-500.0,0.00011073,2]
[380322985,1755677441251,-500.0,0.00011073,2]
[380322986,1755677441261,-500.0,0.00011073,2]
[380322987,1755677441270,-500.0,0.00011073,2]
[380322988,1755677441279,-500.0,0.00011073,2]
[380322989,1755677441289,-500.0,0.00011073,2]
[380322990,1755677441298,-600.30022113,0.00011073,2]
[380322991,1755677441307,-500.0,0.00011073,2]
[380322992,1755677441316,-500.0,0.00011073,2]
[380322993,1755677441326,-500.0,0.00011073,2]
[380322994,1755677441335,-500.0,0.00011073,2]
[380322995,1755677441344,-500.0,0.00011073,2]
[380322996,1755677441354,-500.0,0.00011073,2]
[380322997,1755677441363,-300.0,0.00011075,2]
[380322998,1755677441373,-150.0,0.00011087,2]
[380322999,1755677441383,-790.25632989,0.00011087,2]
[380323000,1755677441392,-1007.18944005,0.00011087,2]
[380323001,1755677441402,-1224.12255022,0.00011087,2]
[380323002,1755677441412,-1441.05566039,0.00011087,2]
[380323003,1755677441421,-1657.98877055,0.00011088,2]
[380323004,1755677441431,-1874.92188072,0.00011088,2]
[380323005,1755677441441,-2091.85499088,0.00011088,2]
[380323006,1755677441451,-2308.78810105,0.00011088,2]
[380323007,1755677441461,-2525.72121121,0.00011088,2]
[380323008,1755677441470,-264173.33669958,0.00011098,2]
[380323009,1755677441480,-183.45303371,0.00011098,2]
[380323010,1755677441490,-110728.36513728,0.00011099,2]
[380323011,1755677441499,-87781.58335,0.00011099,2]
[380323012,1755677441511,-22946.78178725,0.00011099,2]
[380323013,1755677441521,-150.0,0.000111,2]
[380323014,1755677441531,-2001.4412,0.000111,2]
[380323015,1755677441541,-1169.5678,0.000111,2]
[380323016,1755677441551,-785.9156,0.000111,2]
[380323017,1755677441560,-1000.0,0.00011118,2]
[380323018,1755677441570,-150.068,0.00011119,2]
[380323019,1755677441579,-178.768,0.00011119,2]
[380323020,1755677441589,-630.101,0.00011119,2]
[380323021,1755677441597,-1255.0,0.00011119,2]
[380323022,1755677441607,-2045.833,0.00011119,2]
[380323023,1755677441616,-3379.625,0.00011119,2]
[380323024,1755677441626,-1299.569,0.00011119,2]
[380323025,1755677441636,-567.114,0.00011119,2]
[380323026,1755677441645,-1000.544,0.00011119,2]
[380323027,1755677441654,-609.479,0.00011119,2]
[380323028,1755677441663,-1085.0,0.00011243,2]
[380323029,1755677441672,-110728.36513725,0.00011248,2]
[380323030,1755677441681,-1000.0,0.00011257,2]
[380323031,1755677441690,-887.4055589,0.00011266,2]
[380323032,1755677441700,-194.98,0.00011268,2]
[380323033,1755677441709,-694.3,0.00011273,2]
[380323034,1755677441718,-200.0,0.00011274,2]
[380323035,1755677441727,-150.0,0.00011274,2]
[380323036,1755677441737,-150.0,0.00011274,2]
[380323037,1755677441746,-150.0,0.00011274,2]
[380323038,1755677441755,-500.0,0.00011274,2]
[380323039,1755677441765,-500.0,0.00011274,2]
[380323040,1755677441774,-150.0,0.00011274,2]
[380323041,1755677441787,-500.0,0.00011274,2]
[380323042,1755677441799,-280.33359015,0.00011274,2]
[380323043,1755677441808,-500.0,0.00011274,2]
[380323044,1755677441817,-500.0,0.00011347,2]
[380323045,1755677441827,-500.0,0.00011347,2]
[380323046,1755677441836,-500.0,0.00011347,2]
[380323047,1755677441845,-880.0,0.00011347,2]
[380323048,1755677441863,-176.05255947,0.00011367,2]
[380323049,1755677441879,-500.0,0.0001137,2]
[380323050,1755677441889,-6342.139717,0.000114,2]
[380323051,1755677441902,-500.0,0.000114,2]
[380323052,1755677441920,-500.0,0.000114,2]
[380323053,1755677441937,-349.75,0.00011412,2]
[380323054,1755677441955,-865.54324812,0.00011416,2]
[380323055,1755677441971,-110728.36513725,0.00011422,2]
[380323056,1755677441987,-2751.0,0.00011507,2]
[380323057,1755677442005,-1000.0,0.00011521,2]
[380323058,1755677442024,-694.3,0.00011547,2]
[380323059,1755677442043,-200.0,0.00011548,2]
[380323060,1755677442060,-150.0,0.00011548,2]
[380323061,1755677442079,-150.0,0.00011548,2]
[380323062,1755677442095,-500.0,0.00011548,2]
[380323063,1755677442109,-621.56254409,0.00011548,2]
[380323064,1755677442126,-238.0,0.00011548,2]
[380323065,1755677442140,-468.99812775,0.00011548,2]
[380323066,1755677442156,-500.0,0.00011548,2]
[380323067,1755677442170,-151.0,0.00011567,2]
[380323068,1755677442199,-151.0,0.00011567,2]
[380323069,1755677442215,-151.238838,0.00011567,2]
[380323070,1755677442231,-151.0,0.00011567,2]
[380323071,1755677442246,-151.0,0.00011567,2]
[380323072,1755677442261,-151.0,0.00011567,2]
[380323073,1755677442277,-199.189861,0.00011567,2]
[380323074,1755677442292,-151.0,0.00011567,2]
[380323075,1755677442308,-151.0,0.00011567,2]
[380323076,1755677442323,-151.0,0.00011567,2]
[380323077,1755677442338,-151.0,0.00011567,2]
[380323078,1755677442354,-222.360816,0.00011567,2]
[380323079,1755677442369,-151.0,0.00011567,2]
[380323080,1755677442385,-151.208663,0.00011567,2]
[380323082,1755677442400,-151.0,0.00011567,2]
[380323084,1755677442415,-151.0,0.00011567,2]
[380323087,1755677442430,-151.0,0.00011567,2]
[380323088,1755677442446,-165.561665,0.00011567,2]
[380323089,1755677442460,-151.0,0.00011567,2]
[380323090,1755677442475,-165.561665,0.00011567,2]
[380323091,1755677442490,-165.561665,0.00011567,2]
[380323092,1755677442506,-165.561665,0.00011567,2]
[380323094,1755677442521,-151.0,0.00011567,2]
[380323095,1755677442536,-151.0,0.00011567,2]
[380323096,1755677442552,-151.0,0.00011567,2]
[380323097,1755677442569,-110728.36513725,0.00011596,2]
[380323098,1755677442584,-599.94,0.00011614,2]
[380323099,1755677442600,-500.0,0.00011621,2]
[380323100,1755677442615,-500.0,0.00011621,2]
[380323101,1755677442630,-1000.0,0.00011621,2]
[380323102,1755677442646,-432.52438624,0.00011621,2]
[380323103,1755677442661,-1000.0,0.00011621,2]
[380323104,1755677442676,-1149.24775804,0.00011621,2]
[380323105,1755677442692,-500.67120204,0.00011621,2]
[380323106,1755677442707,-1000.0,0.00011621,2]
[380323107,1755677442722,-895.40403878,0.00011621,2]
[380323108,1755677442739,-1000.0,0.00011621,2]
[380323109,1755677442755,-1000.0,0.00011621,2]
[380323110,1755677442769,-500.50910085,0.00011621,2]
[380323111,1755677442784,-1000.0,0.00011621,2]
[380323112,1755677442800,-1000.0,0.00011621,2]
[380323113,1755677442816,-1000.0,0.00011621,2]
[380323114,1755677442832,-1000.0,0.00011621,2]
[380323115,1755677442847,-1000.0,0.00011621,2]
[380323116,1755677442863,-1002.90418228,0.00011621,2]
[380323117,1755677442879,-1000.0,0.00011621,2]
[380323118,1755677442894,-1000.0,0.00011621,2]
[380323120,1755677442909,-500.0,0.00011621,2]
[380323122,1755677442925,-861.05824214,0.00011633,2]
[380323124,1755677442945,-151.0,0.0001173,2]
[380323125,1755677442961,-151.0,0.0001173,2]
[380323126,1755677442979,-224.387115,0.0001173,2]
[380323127,1755677442995,-151.0,0.0001173,2]
[380323128,1755677443011,-151.0,0.0001173,2]
[380323129,1755677443026,-151.0,0.0001173,2]
[380323130,1755677443041,-151.0,0.0001173,2]
[380323131,1755677443057,-151.0,0.0001173,2]
[380323132,1755677443073,-151.0,0.0001173,2]
[380323133,1755677443088,-151.0,0.0001173,2]
[380323134,1755677443104,-151.0,0.0001173,2]
[380323136,1755677443119,-305.161304,0.0001173,2]
[380323138,1755677443135,-305.161304,0.0001173,2]
[380323141,1755677443150,-305.161304,0.0001173,2]
[380323142,1755677443166,-305.161304,0.0001173,2]
[380323143,1755677443182,-151.0,0.0001173,2]
[380323145,1755677443198,-151.0,0.0001173,2]
[380323146,1755677443230,-151.0,0.0001173,2]
[380323147,1755677443253,-151.0,0.0001173,2]
[380323150,1755677443274,-151.0,0.0001173,2]
[380323152,1755677443295,-151.0,0.00011733,2]
[380323153,1755677443315,-151.0,0.00011733,2]
[380323154,1755677443335,-235.755677,0.00011733,2]
[380323155,1755677443354,-235.755677,0.00011733,2]
[380323156,1755677443373,-235.755677,0.00011733,2]
[380323157,1755677443392,-235.755677,0.00011733,2]
[380323158,1755677443410,-151.0,0.00011733,2]
[380323159,1755677443427,-288.3598,0.00011733,2]
[380323160,1755677443446,-151.0,0.00011733,2]
[380323161,1755677443463,-288.3598,0.00011733,2]
[380323162,1755677443479,-288.3598,0.00011733,2]
[380323163,1755677443495,-151.0,0.00011733,2]
[380323164,1755677443512,-288.3598,0.00011733,2]
[380323165,1755677443527,-151.0,0.00011733,2]
[380323166,1755677443543,-265.826887,0.00011733,2]
[380323167,1755677443559,-151.0,0.00011733,2]
[380323168,1755677443575,-151.0,0.00011733,2]
[380323169,1755677443591,-151.0,0.00011733,2]
[380323170,1755677443607,-271.352956,0.00011733,2]
[380323171,1755677443623,-271.352956,0.00011733,2]
[380323172,1755677443640,-271.352956,0.00011733,2]
[380323173,1755677443656,-231.577128,0.00011733,2]
[380323174,1755677443671,-271.352956,0.00011733,2]
[380323175,1755677443687,-231.577128,0.00011733,2]
[380323176,1755677443704,-231.577128,0.00011733,2]
[380323177,1755677443721,-231.577128,0.00011733,2]
[380323178,1755677443737,-151.0,0.00011733,2]
[380323179,1755677443753,-151.0,0.00011733,2]
[380323180,1755677443769,-151.0,0.00011733,2]
[380323181,1755677443785,-151.0,0.00011733,2]
[380323182,1755677443801,-151.788955,0.00011733,2]
[380323183,1755677443816,-151.0,0.00011733,2]
[380323184,1755677443832,-985.870354,0.00011733,2]
[380323185,1755677443848,-151.0,0.00011733,2]
[380323186,1755677443864,-985.870354,0.00011733,2]
[380323187,1755677443880,-151.0,0.00011733,2]
[380323188,1755677443896,-985.870354,0.00011733,2]
[380323189,1755677443912,-151.0,0.00011733,2]
[380323190,1755677443928,-317.45377,0.00011733,2]
[380323191,1755677443947,-151.0,0.00011733,2]
[380323192,1755677443962,-985.870354,0.00011733,2]
[380323193,1755677443978,-151.0,0.00011733,2]
[380323194,1755677443992,-317.45377,0.00011733,2]
[380323195,1755677444015,-154.798794,0.00011733,2]
[380323196,1755677444031,-151.0,0.00011733,2]
[380323197,1755677444048,-317.45377,0.00011733,2]
[380323198,1755677444063,-151.0,0.00011733,2]
[380323199,1755677444079,-317.45377,0.00011733,2]
[380323200,1755677444094,-151.0,0.00011733,2]
[380323201,1755677444109,-151.0,0.00011733,2]
[380323202,1755677444124,-468.523521,0.00011733,2]
[380323203,1755677444139,-174.894316,0.00011733,2]
[380323204,1755677444155,-468.523521,0.00011733,2]
[380323205,1755677444170,-174.894316,0.00011733,2]
[380323206,1755677444185,-468.523521,0.00011733,2]
[380323207,1755677444202,-174.894316,0.00011733,2]
[380323208,1755677444217,-468.523521,0.00011733,2]
[380323209,1755677444232,-174.894316,0.00011733,2]
[380323210,1755677444247,-151.0,0.00011733,2]
[380323211,1755677444262,-151.0,0.00011733,2]
[380323212,1755677444277,-151.0,0.00011733,2]
[380323213,1755677444292,-151.0,0.00011733,2]
[380323214,1755677444308,-151.0,0.00011733,2]
[380323215,1755677444322,-151.0,0.00011733,2]
[380323216,1755677444338,-352.64172,0.00011733,2]
[380323217,1755677444353,-352.64172,0.00011733,2]
[380323218,1755677444367,-1094.064369,0.00011733,2]
[380323219,1755677444383,-352.64172,0.00011733,2]
[380323220,1755677444399,-1094.064369,0.00011733,2]
[380323221,1755677444413,-352.64172,0.00011733,2]
[380323222,1755677444428,-151.0,0.00011733,2]
[380323223,1755677444443,-1094.064369,0.00011733,2]
[380323224,1755677444459,-178.696415,0.00011733,2]
[380323225,1755677444475,-1094.064369,0.00011733,2]
[380323226,1755677444491,-151.0,0.00011733,2]
[380323227,1755677444507,-302.327394,0.00011733,2]
[380323228,1755677444524,-151.611979,0.00011733,2]
[380323229,1755677444538,-151.0,0.00011733,2]
[380323230,1755677444553,-302.327394,0.00011733,2]
[380323231,1755677444567,-151.0,0.00011733,2]
[380323232,1755677444581,-151.0,0.00011733,2]
[380323233,1755677444595,-302.327394,0.00011733,2]
[380323234,1755677444610,-151.0,0.00011733,2]
[380323235,1755677444624,-151.0,0.00011733,2]
[380323236,1755677444638,-151.0,0.00011733,2]
[380323237,1755677444652,-151.0,0.00011733,2]
[380323238,1755677444666,-302.327394,0.00011733,2]
[380323239,1755677444680,-262.957459,0.00011733,2]
[380323240,1755677444695,-151.0,0.00011733,2]
[380323241,1755677444711,-151.0,0.00011733,2]
[380323242,1755677444726,-1029.883528,0.00011733,2]
[380323243,1755677444741,-262.957459,0.00011733,2]
[380323244,1755677444756,-151.0,0.00011733,2]
[380323245,1755677444770,-1029.883528,0.00011733,2]
[380323246,1755677444785,-151.0,0.00011733,2]
[380323247,1755677444800,-262.957459,0.00011733,2]
[380323248,1755677444816,-1029.883528,0.00011733,2]
[380323249,1755677444831,-262.957459,0.00011733,2]
[380323250,1755677444846,-1029.883528,0.00011733,2]
[380323251,1755677444861,-151.0,0.00011733,2]
[380323252,1755677444879,-151.0,0.00011733,2]
[380323253,1755677444895,-151.0,0.00011733,2]
[380323254,1755677444909,-178.713204,0.00011733,2]
[380323255,1755677444924,-151.0,0.00011733,2]
[380323256,1755677444945,-151.0,0.00011733,2]
[380323257,1755677444960,-494.698697,0.00011733,2]
[380323258,1755677444978,-525.23667,0.00011733,2]
[380323259,1755677444994,-494.698697,0.00011733,2]
[380323260,1755677445011,-525.23667,0.00011733,2]
[380323261,1755677445026,-494.698697,0.00011733,2]
[380323262,1755677445041,-525.23667,0.00011733,2]
[380323263,1755677445056,-494.698697,0.00011733,2]
[380323264,1755677445071,-525.23667,0.00011733,2]
[380323265,1755677445086,-151.0,0.00011733,2]
[380323266,1755677445101,-151.0,0.00011733,2]
[380323267,1755677445116,-151.0,0.00011733,2]
[380323268,1755677445131,-151.0,0.00011733,2]
[380323269,1755677445145,-151.0,0.00011733,2]
[380323270,1755677445159,-218.789487,0.00011733,2]
[380323271,1755677445674,-248.376773,0.00011733,2]
[380323272,1755677445721,-218.789487,0.00011733,2]
[380323273,1755677445751,-468.403126,0.00011733,2]
[380323274,1755677445761,-248.376773,0.00011733,2]
[380323275,1755677445770,-151.0,0.00011733,2]
[380323276,1755677445779,-218.789487,0.00011733,2]
[380323277,1755677445789,-468.403126,0.00011733,2]
[380323278,1755677445800,-151.0,0.00011733,2]
[380323279,1755677445809,-151.0,0.00011733,2]
[380323280,1755677445819,-151.0,0.00011733,2]
[380323281,1755677445829,-151.937667,0.00011733,2]
[380323282,1755677445840,-468.403126,0.00011733,2]